bitfinex/quotes_BTCUSD_20250618
["timestamp","ask_amount","ask_price","bid_price","bid_amount"]
[1750223025871,5.073702,105600.0,105590.0,0.62170517]
[1750223026099,5.073702,105600.0,105590.0,0.81770517]
[1750223026532,5.09264003,105600.0,105590.0,0.81770517]
[1750223026753,5.08317088,105600.0,105590.0,0.81770517]
[1750223026972,5.09263994,105600.0,105590.0,0.81770517]
[1750223027418,5.09263994,105600.0,105590.0,0.81766517]
[1750223028134,5.09263994,105600.0,105590.0,0.62170517]
[1750223028343,5.10210918,105600.0,105590.0,0.81762517]
[1750223028837,5.1115786,105600.0,105590.0,0.81762517]
[1750223029041,5.10210918,105600.0,105590.0,0.81762517]
[1750223029275,5.11157851,105600.0,105590.0,0.81762517]
[1750223029745,5.31044204,105600.0,105590.0,0.61223521]
[1750223029951,5.11157923,105600.0,105590.0,0.82705531]
[1750223030192,5.11157923,105600.0,105590.0,0.53595531]
[1750223031731,5.30097316,105600.0,105590.0,0.52648535]
[1750223031948,5.30097316,105600.0,105590.0,0.37124535]
[1750223032173,5.30097316,105600.0,105590.0,0.52644535]
[1750223032411,5.30097316,105600.0,105590.0,0.51697521]
[1750223032633,5.30097316,105600.0,105590.0,0.52644535]
[1750223033801,5.2915041,105600.0,105590.0,0.51697521]
[1750223034012,4.94203486,105600.0,105590.0,0.51697539]
[1750223034288,4.94203486,105600.0,105590.0,0.52644571]
[1750223034521,4.93256553,105600.0,105590.0,0.39668237]
[1750223034721,4.93256553,105600.0,105590.0,0.40615278]
[1750223035186,4.93256553,105600.0,105590.0,0.41562292]
[1750223035888,5.27256553,105600.0,105590.0,0.40615278]
[1750223036119,5.27256553,105600.0,105590.0,0.41562292]
[1750223036426,5.30102453,105600.0,105590.0,0.41562292]
[1750223036631,5.30102453,105600.0,105590.0,0.40615278]
[1750223037267,5.30102453,105600.0,105590.0,0.39668237]
[1750223037924,5.29155493,105600.0,105590.0,0.002]
[1750223038155,5.29155493,105600.0,105590.0,0.19772]
[1750223039806,0.54835278,105590.0,105580.0,0.14401534]
[1750223040032,5.29232492,105590.0,105580.0,0.44536841]
[1750223040715,5.28285478,105590.0,105580.0,0.44536859]
[1750223040944,5.28285478,105590.0,105580.0,0.14611325]
[1750223041178,5.27320321,105580.0,105570.0,0.19934379]
[1750223041414,5.27320321,105580.0,105570.0,0.54042329]
[1750223041635,5.27320321,105580.0,105570.0,0.54989558]
[1750223041893,5.30166821,105580.0,105570.0,0.54989558]
[1750223042338,5.30166821,105580.0,105570.0,0.35097554]
[1750223042781,5.30166821,105580.0,105570.0,0.19577554]
[1750223043263,5.30166821,105580.0,105570.0,0.35101554]
[1750223043732,5.30166821,105580.0,105570.0,0.0404]
[1750223043959,4.70809431,105560.0,105550.0,0.18503227]
[1750223044182,4.92118727,105560.0,105550.0,0.21690689]
[1750223044421,4.92118727,105560.0,105550.0,0.41262689]
[1750223044422,4.95398727,105560.0,105550.0,0.41262689]
[1750223044643,4.95398727,105560.0,105550.0,0.44611529]
[1750223045517,4.736102,105560.0,105550.0,0.4555883]
[1750223045784,4.6891473,105560.0,105550.0,0.4555883]
[1750223046008,4.6891473,105560.0,105550.0,0.4585883]
[1750223046230,4.69862022,105560.0,105550.0,0.4585883]
[1750223046460,4.6891473,105560.0,105550.0,0.4586283]
[1750223046673,4.6891473,105560.0,105550.0,0.4606283]
[1750223047163,4.69862013,105560.0,105550.0,0.4606283]
[1750223047597,4.72706394,105560.0,105550.0,0.4606283]
[1750223047820,4.73653704,105560.0,105550.0,0.4606283]
[1750223048514,4.76500504,105560.0,105550.0,0.4606283]
[1750223049315,4.95447074,105560.0,105550.0,0.45115475]
[1750223049534,4.77447823,105560.0,105550.0,0.4606283]
[1750223050001,4.76500504,105560.0,105550.0,0.4606283]
[1750223050227,4.75553194,105560.0,105550.0,0.46054063]
[1750223050456,4.76500495,105560.0,105550.0,0.46054063]
[1750223051224,4.74605911,105560.0,105550.0,0.46054063]
[1750223051435,4.75553203,105560.0,105550.0,0.46054063]
[1750223052910,4.75553194,105560.0,105550.0,0.46054063]
[1750223053371,4.78813194,105560.0,105550.0,0.46054063]
[1750223053602,4.76500495,105560.0,105550.0,0.46054063]
[1750223054993,4.75553194,105560.0,105550.0,0.46054063]
[1750223055206,4.76500495,105560.0,105550.0,0.46054063]
[1750223056842,4.75553194,105560.0,105550.0,0.46054063]
[1750223057260,4.74605911,105560.0,105550.0,0.46054063]
[1750223057483,4.72711381,105560.0,105550.0,0.46054063]
[1750223058120,4.73658655,105560.0,105550.0,0.46054063]
[1750223058340,4.73658655,105560.0,105550.0,0.49304063]
[1750223058702,4.72711381,105560.0,105550.0,0.49304063]
[1750223058928,4.73658655,105560.0,105550.0,0.49304063]
[1750223059145,4.74605911,105560.0,105550.0,0.49304063]
[1750223059365,4.7460592,105560.0,105550.0,0.49304063]
[1750223059797,4.73658637,105560.0,105550.0,0.49304063]
[1750223060010,4.74605911,105560.0,105550.0,0.49304063]
[1750223060232,4.72711381,105560.0,105550.0,0.52614063]
[1750223060450,0.02844381,105560.0,105550.0,0.52614063]
[1750223060887,5.06708318,105570.0,105560.0,0.23242531]
[1750223061110,5.06708318,105570.0,105560.0,0.32866707]
[1750223061330,5.05761125,105570.0,105560.0,0.32866707]
[1750223061548,5.07655529,105570.0,105560.0,0.32866707]
[1750223061757,5.1055631,105570.0,105560.0,0.32866707]
[1750223061987,5.1055631,105570.0,105560.0,0.32966707]
[1750223062217,5.09609099,105570.0,105560.0,0.33066707]
[1750223062867,5.1055631,105570.0,105560.0,0.33066707]
[1750223063084,5.10556301,105570.0,105560.0,0.33066707]
[1750223063941,5.07714739,105570.0,105560.0,0.33066707]
[1750223064164,5.08661923,105570.0,105560.0,0.39436707]
[1750223065977,5.09609125,105570.0,105560.0,0.33066707]
[1750223066188,5.10556345,105570.0,105560.0,0.33066707]
[1750223067478,5.08661923,105570.0,105560.0,0.33066707]
[1750223067696,5.09609125,105570.0,105560.0,0.33066707]
[1750223069051,5.10556345,105570.0,105560.0,0.33066707]
[1750223070117,5.10556336,105570.0,105560.0,0.33066707]
[1750223070534,5.09609125,105570.0,105560.0,0.33066707]
[1750223071367,5.08661923,105570.0,105560.0,0.33066707]
[1750223072096,5.09609116,105570.0,105560.0,0.33066707]
[1750223072700,5.10556336,105570.0,105560.0,0.52634707]
[1750223073366,5.09609116,105570.0,105560.0,0.52634707]
[1750223073585,5.10556336,105570.0,105560.0,0.52634707]
[1750223074013,5.10556336,105570.0,105560.0,0.51687442]
[1750223074577,5.09609116,105570.0,105560.0,0.53581981]
[1750223074791,5.29501102,105570.0,105560.0,0.53581981]
[1750223075039,5.10556327,105570.0,105560.0,0.53581981]
[1750223075269,5.08661923,105570.0,105560.0,0.53581981]
[1750223075431,5.07714756,105570.0,105560.0,0.59861981]
[1750223075836,0.39747381,105570.0,105560.0,0.59861981]
[1750223076068,0.40694548,105570.0,105560.0,0.59861981]
[1750223076273,0.05747381,105570.0,105560.0,0.59861981]
[1750223076817,0.06694548,105570.0,105560.0,0.59861981]
[1750223077248,0.02900781,105570.0,105560.0,0.59861981]
[1750223077482,0.02900781,105570.0,105560.0,0.88971981]
[1750223077706,4.698665,105580.0,105570.0,0.29540466]
[1750223077922,5.04813568,105580.0,105570.0,0.39164642]
[1750223078129,5.038665,105580.0,105570.0,0.39164642]
[1750223078329,5.04813568,105580.0,105570.0,0.39164642]
[1750223078631,0.34,105580.0,105570.0,0.39164642]
[1750223079074,0.341,105580.0,105570.0,0.39164642]
[1750223079291,0.342,105580.0,105570.0,0.39164642]
[1750223079734,0.36988031,105580.0,105570.0,0.39164642]
[1750223079993,0.36888031,105580.0,105570.0,0.39164642]
[1750223080212,0.36788031,105580.0,105570.0,0.39164642]
[1750223080429,0.36788031,105580.0,105570.0,0.39264642]
[1750223081514,0.36788031,105580.0,105570.0,0.39364642]
[1750223089284,0.36788031,105580.0,105570.0,0.68474642]
[1750223090299,0.37735099,105580.0,105570.0,0.68474642]
[1750223090523,0.36788031,105580.0,105570.0,0.68474642]
[1750223091460,0.38682176,105580.0,105570.0,0.77678642]
[1750223091690,0.37735099,105580.0,105570.0,0.77678642]
[1750223091931,0.37735099,105580.0,105570.0,0.81722642]
[1750223092149,0.36788031,105580.0,105570.0,0.81722642]
[1750223099528,0.36788031,105580.0,105570.0,0.88132642]
[1750223109580,4.77747344,105610.0,105600.0,0.23234277]
[1750223109797,5.14119661,105610.0,105600.0,0.52366453]
[1750223110015,5.15066496,105610.0,105600.0,0.52366453]
[1750223110235,5.15066487,105610.0,105600.0,0.52366453]
[1750223110749,5.34951048,105610.0,105600.0,0.51419565]
[1750223110968,5.34951048,105610.0,105600.0,0.30462196]
[1750223111189,5.34951048,105610.0,105600.0,0.49970196]
[1750223111407,5.34004222,105610.0,105600.0,0.40346038]
[1750223111632,5.34104222,105610.0,105600.0,0.4129298]
[1750223111842,5.34304222,105610.0,105600.0,0.42239904]
[1750223112705,5.37213676,105610.0,105600.0,0.42239904]
[1750223113343,5.37213676,105610.0,105600.0,0.43186819]
[1750223114475,5.37213676,105610.0,105600.0,0.42239913]
[1750223115348,5.37213676,105610.0,105600.0,0.43186837]
[1750223116828,5.39178296,105610.0,105590.0,0.21719501]
[1750223117053,5.38231434,105610.0,105600.0,0.15661013]
[1750223117726,5.38131434,105610.0,105600.0,0.15661013]
[1750223118141,5.38231434,105610.0,105600.0,0.15661013]
[1750223118620,5.35319979,105610.0,105600.0,0.15661013]
[1750223119486,5.35219979,105610.0,105600.0,0.15661013]
[1750223119721,5.35319979,105610.0,105600.0,0.15661013]
[1750223121684,5.27893459,105600.0,105590.0,0.3185551]
[1750223121929,5.27893459,105600.0,105590.0,0.52310515]
[1750223122152,5.10847968,105600.0,105590.0,0.53257511]
[1750223122385,5.11794856,105600.0,105590.0,0.32802506]
[1750223122640,5.10847878,105600.0,105590.0,0.52310506]
[1750223122881,5.13693678,105600.0,105590.0,0.52310506]
[1750223123951,5.13693678,105600.0,105590.0,0.5136351]
[1750223123952,5.14640647,105600.0,105590.0,0.5136351]
[1750223124573,5.32633152,105600.0,105590.0,0.5136351]
[1750223126110,5.32633152,105600.0,105590.0,0.52310515]
[1750223126333,5.13693759,105600.0,105590.0,0.53257511]
[1750223126987,5.32633152,105600.0,105590.0,0.52310515]
[1750223129547,5.1274679,105600.0,105590.0,0.53257511]
[1750223129999,5.1369375,105600.0,105590.0,0.53257511]
[1750223130214,5.14640719,105600.0,105590.0,0.53257511]
[1750223132468,5.32633197,105600.0,105590.0,0.52310515]
[1750223132919,5.31686273,105600.0,105590.0,0.5136351]
[1750223133161,5.30739322,105600.0,105590.0,0.51363528]
[1750223133402,5.30739322,105600.0,105590.0,0.35875528]
[1750223133616,5.30739322,105600.0,105590.0,0.51363528]
[1750223133831,5.31756848,105600.0,105590.0,4.735e-05]
[1750223134061,5.31756848,105600.0,105570.0,0.22748]
[1750223134062,5.26303181,105580.0,105570.0,0.22748]
[1750223134288,5.26303181,105580.0,105570.0,0.42260736]
[1750223134766,5.26303181,105580.0,105570.0,0.26772736]
[1750223134992,5.26303181,105580.0,105570.0,0.42260736]
[1750223135424,5.26503181,105580.0,105570.0,0.19512736]
[1750223135631,5.26503181,105580.0,105570.0,4.736e-05]
[1750223135840,5.26503181,105580.0,105570.0,0.19512736]
[1750223136728,5.26603181,105580.0,105570.0,0.19512736]
[1750223138482,5.26603181,105580.0,105570.0,0.15492736]
[1750223139803,5.27550303,105580.0,105570.0,0.15492736]
[1750223140037,5.30396903,105580.0,105570.0,0.15492736]
[1750223140466,5.29449781,105580.0,105570.0,0.15492736]
[1750223141389,5.29449781,105580.0,105570.0,0.16439974]
[1750223141806,5.29449781,105580.0,105570.0,0.15492736]
[1750223144157,5.29449781,105580.0,105570.0,0.16439974]
[1750223144399,5.29449781,105580.0,105570.0,0.36331978]
[1750223145066,5.29449781,105580.0,105570.0,0.16439974]
[1750223145279,5.29449781,105580.0,105570.0,0.35384749]
[1750223145480,5.28999781,105580.0,105570.0,0.36331978]
[1750223145908,5.13355667,105580.0,105570.0,0.36331978]
[1750223146835,5.13355667,105580.0,105570.0,0.37279198]
[1750223147532,5.13355667,105580.0,105570.0,0.36331978]
[1750223148188,5.13355667,105580.0,105570.0,0.37279189]
[1750223148405,5.13355667,105580.0,105570.0,0.38226391]
[1750223149647,5.13355667,105580.0,105570.0,0.36331978]
[1750223149877,5.16665667,105580.0,105570.0,0.35384749]
[1750223150092,5.16665667,105580.0,105570.0,0.36331969]
[1750223150500,5.16665667,105580.0,105570.0,0.36331978]
[1750223151901,5.16665667,105580.0,105570.0,0.37279198]
[1750223152122,5.16665667,105580.0,105570.0,0.38226409]
[1750223152335,5.13355667,105580.0,105570.0,0.39173611]
[1750223154014,5.13355667,105580.0,105570.0,0.38226409]
[1750223155129,5.13355667,105580.0,105570.0,0.37279198]
[1750223155351,5.13355667,105580.0,105570.0,0.16439974]
[1750223155602,5.16485667,105580.0,105570.0,0.36331978]
[1750223155805,5.13355667,105580.0,105570.0,0.37279198]
[1750223156227,5.13355667,105580.0,105570.0,0.38226409]
[1750223156901,5.14302798,105580.0,105570.0,0.39173593]
[1750223157106,5.06061035,105580.0,105570.0,0.45443593]
[1750223157313,5.06061035,105580.0,105570.0,0.4544353]
[1750223157539,5.07008175,105580.0,105570.0,0.4544353]
[1750223157746,5.07955324,105580.0,105570.0,0.4544353]
[1750223159043,5.25951201,105580.0,105570.0,0.4165474]
[1750223159244,5.25951201,105580.0,105570.0,0.39541942]
[1750223159467,5.25951201,105580.0,105570.0,0.36331942]
[1750223159661,5.25951201,105580.0,105570.0,0.37279135]
[1750223159867,5.25951201,105580.0,105570.0,0.38226319]
[1750223160075,5.25951201,105580.0,105570.0,0.44576319]
[1750223160297,5.25951201,105580.0,105570.0,0.38226319]
[1750223160918,5.25951201,105580.0,105570.0,0.44426319]
[1750223161545,5.0700822,105580.0,105570.0,0.44426319]
[1750223161755,5.0700822,105580.0,105570.0,0.45373494]
[1750223162000,5.0606099,105580.0,105570.0,0.45373494]
[1750223162205,5.06060954,105580.0,105570.0,0.56451755]
[1750223162435,5.07008067,105580.0,105570.0,0.56451755]
[1750223162906,5.07008058,105580.0,105570.0,0.56451755]
[1750223163113,5.07955171,105580.0,105570.0,0.56451755]
[1750223163560,5.07008058,105580.0,105570.0,0.56451755]
[1750223164008,5.0795518,105580.0,105570.0,0.56451755]
[1750223165300,5.27845373,105580.0,105570.0,0.54557396]
[1750223165526,5.26898287,105580.0,105570.0,0.54557396]
[1750223165791,5.29172024,105580.0,105570.0,0.54557396]
[1750223166133,5.26898287,105580.0,105570.0,0.5550458]
[1750223166339,5.07008157,105580.0,105570.0,0.56451755]
[1750223166807,5.07008157,105580.0,105570.0,0.37175001]
[1750223166808,5.26898278,105580.0,105570.0,0.37175001]
[1750223167027,5.25004052,105580.0,105570.0,0.30027772]
[1750223167252,5.03112452,105580.0,105570.0,0.31534235]
[1750223168157,5.05435321,105580.0,105570.0,0.19508736]
[1750223168853,5.05435321,105580.0,105570.0,0.15492736]
[1750223170445,5.05422389,105580.0,105570.0,0.15492736]
[1750223170929,5.07696321,105580.0,105570.0,0.15492736]
[1750223171151,5.07696319,105580.0,105570.0,0.15492736]
[1750223171631,5.05422389,105580.0,105570.0,0.15492736]
[1750223172756,5.07696325,105580.0,105570.0,0.15492736]
[1750223174464,0.53891995,105570.0,105560.0,0.00994736]
[1750223174675,4.99020595,105570.0,105560.0,0.174308]
[1750223174889,4.99020595,105570.0,105560.0,0.16483472]
[1750223175287,4.99020595,105570.0,105560.0,0.174308]
[1750223175513,5.02130595,105570.0,105560.0,4.736e-05]
[1750223175720,5.05320595,105570.0,105560.0,4.736e-05]
[1750223175937,5.05320595,105570.0,105560.0,0.19504736]
[1750223176145,4.99020595,105570.0,105560.0,0.20452064]
[1750223178490,5.01867295,105570.0,105560.0,0.20452064]
[1750223179637,5.01867295,105570.0,105560.0,0.19504736]
[1750223179814,5.04957295,105570.0,105560.0,0.19504736]
[1750223180011,5.04957295,105570.0,105560.0,0.04020736]
[1750223180219,5.04957295,105570.0,105560.0,0.19504736]
[1750223182735,5.01867295,105570.0,105560.0,0.20452064]
[1750223183971,5.08087295,105570.0,105560.0,0.19504736]
[1750223186168,5.05007295,105570.0,105560.0,0.19504736]
[1750223186855,5.01867295,105570.0,105560.0,0.19504736]
[1750223187324,5.01867295,105570.0,105560.0,0.39398634]
[1750223187536,5.01867295,105570.0,105560.0,0.42638634]
[1750223187751,5.01867295,105570.0,105560.0,0.23692064]
[1750223187968,5.01867295,105570.0,105560.0,0.22744736]
[1750223188197,5.01867295,105570.0,105560.0,0.19504736]
[1750223188421,4.83869704,105570.0,105560.0,0.48720474]
[1750223188642,4.82922467,105570.0,105560.0,0.48720474]
[1750223188902,4.84816844,105570.0,105560.0,0.48720474]
[1750223189128,4.85764055,105570.0,105560.0,0.48720474]
[1750223190167,4.86711275,105570.0,105560.0,0.48720474]
[1750223191277,4.85764055,105570.0,105560.0,0.48720474]
[1750223191700,4.86711275,105570.0,105560.0,0.48720474]
[1750223191915,4.85764055,105570.0,105560.0,0.48720474]
[1750223193312,4.86711275,105570.0,105560.0,0.48720474]
[1750223194386,4.85764055,105570.0,105560.0,0.48720474]
[1750223194810,4.86711275,105570.0,105560.0,0.48720474]
[1750223195620,4.85764055,105570.0,105560.0,0.48720474]
[1750223196279,4.86711275,105570.0,105560.0,0.48720474]
[1750223197223,4.85764055,105570.0,105560.0,0.48720474]
[1750223198086,4.86711275,105570.0,105560.0,0.48720474]
[1750223199215,5.04708883,105570.0,105560.0,0.47773209]
[1750223199423,4.86711337,105570.0,105560.0,0.48720474]
[1750223200174,4.85764108,105570.0,105560.0,0.48720474]
[1750223200384,4.82922475,105570.0,105560.0,0.48720474]
[1750223200594,4.8481687,105570.0,105560.0,0.48720474]
[1750223200814,4.8576409,105570.0,105560.0,0.48720474]
[1750223201028,4.8481687,105570.0,105560.0,0.48720474]
[1750223201239,4.8576409,105570.0,105560.0,0.48720474]
[1750223201453,4.8481687,105570.0,105560.0,0.48720474]
[1750223202378,4.8576409,105570.0,105560.0,0.48720474]
[1750223203008,4.86711319,105570.0,105560.0,0.48720474]
[1750223203211,4.86711382,105570.0,105560.0,0.48720474]
[1750223203636,5.03761762,105570.0,105560.0,0.45878634]
[1750223203867,5.03761762,105570.0,105560.0,0.47773254]
[1750223204314,5.03761762,105570.0,105560.0,0.46447811]
[1750223204533,5.03761762,105570.0,105560.0,0.43187811]
[1750223206517,4.83869749,105570.0,105560.0,0.43187748]
[1750223206728,4.83869713,105570.0,105560.0,0.41293209]
[1750223206976,4.8614425,105570.0,105560.0,0.42240474]
[1750223207114,4.83869713,105570.0,105560.0,0.48260474]
[1750223207538,4.87091501,105570.0,105560.0,0.48260474]
[1750223207820,4.88038733,105570.0,105560.0,0.48260474]
[1750223207998,4.8576418,105570.0,105560.0,0.48260474]
[1750223208829,4.8576418,105570.0,105560.0,0.47313209]
[1750223209661,5.04708955,105570.0,105560.0,0.47313209]
[1750223210296,5.03761762,105570.0,105560.0,0.47313209]
[1750223210501,5.06036503,105570.0,105560.0,0.47313209]
[1750223210711,4.87091728,105570.0,105560.0,0.48260483]
[1750223210914,4.84816987,105570.0,105560.0,0.48260483]
[1750223211964,5.03761762,105570.0,105560.0,0.47313209]
[1750223212182,5.06036569,105570.0,105560.0,0.47313209]
[1750223213042,5.03761762,105570.0,105560.0,0.47313209]
[1750223213226,5.03761762,105570.0,105560.0,0.46365926]
[1750223213459,5.03761762,105570.0,105560.0,0.47313218]
[1750223213893,5.02814542,105570.0,105560.0,0.20845926]
[1750223214127,5.02814542,105570.0,105560.0,0.41289218]
[1750223215689,5.02814542,105570.0,105560.0,0.42236501]
[1750223215874,5.02814542,105570.0,105560.0,0.48296501]
[1750223219423,5.05089461,105570.0,105560.0,0.48296501]
[1750223219670,4.83869677,105570.0,105560.0,0.58867942]
[1750223219870,4.84816897,105570.0,105560.0,0.58867942]
[1750223221131,4.85764126,105570.0,105560.0,0.58867942]
[1750223221456,5.04708901,105570.0,105560.0,0.57920677]
[1750223221635,4.85764126,105570.0,105560.0,0.58867951]
[1750223221877,4.86711364,105570.0,105560.0,0.58867897]
[1750223222094,5.04708964,105570.0,105560.0,0.57920632]
[1750223222530,5.03761762,105570.0,105560.0,0.41493358]
[1750223222741,5.03761762,105570.0,105560.0,0.56973358]
[1750223222980,5.03761762,105570.0,105560.0,0.57920632]
[1750223223202,4.82922493,105570.0,105560.0,0.58867897]
[1750223223401,4.85764073,105570.0,105560.0,0.58867897]
[1750223224047,4.86711293,105570.0,105560.0,0.58867897]
[1750223224690,4.86711355,105570.0,105560.0,0.58867897]
[1750223227575,5.04708973,105570.0,105560.0,0.56973358]
[1750223228002,4.85764198,105570.0,105560.0,0.56973358]
[1750223228205,4.85764198,105570.0,105560.0,0.57920623]
[1750223228636,4.8481696,105570.0,105560.0,0.57920623]
[1750223229059,4.819753,105570.0,105560.0,0.39878708]
[1750223229260,4.819753,105570.0,105560.0,0.59370708]
[1750223229481,4.479753,105570.0,105560.0,0.59370708]
[1750223229677,4.451286,105570.0,105560.0,0.59370708]
[1750223229880,4.791286,105570.0,105560.0,0.59370708]
[1750223230306,4.451286,105570.0,105560.0,0.59370708]
[1750223230631,4.791286,105570.0,105560.0,0.59370708]
[1750223233018,4.791286,105570.0,105560.0,0.59570708]
[1750223233439,4.791286,105570.0,105560.0,0.59670708]
[1750223237104,4.791286,105570.0,105560.0,0.88780708]
[1750223253174,4.59275553,105570.0,105560.0,0.88780708]
[1750223253599,5.191469,105570.0,105560.0,0.88780708]
[1750223260968,5.21993,105570.0,105560.0,0.88780708]
[1750223271638,0.028461,105570.0,105560.0,0.59670708]
[1750223271852,0.0778,105600.0,105590.0,0.23236341]
[1750223271853,4.865669,105600.0,105590.0,0.23236341]
[1750223272078,4.865669,105600.0,105590.0,0.58958517]
[1750223272079,4.851469,105600.0,105590.0,0.58958517]
[1750223272303,4.879925,105600.0,105590.0,0.58958517]
[1750223272748,5.219925,105600.0,105590.0,0.58958517]
[1750223273428,4.879925,105600.0,105590.0,0.58958517]
[1750223273662,5.219925,105600.0,105590.0,0.58958517]
[1750223274756,0.028456,105600.0,105590.0,0.58958517]
[1750223274988,4.87067245,105610.0,105600.0,0.28110192]
[1750223275205,4.89912445,105610.0,105600.0,0.37734368]
[1750223275685,5.23912445,105610.0,105600.0,0.37734368]
[1750223276144,0.35920345,105610.0,105600.0,0.39188453]
[1750223276364,0.35920345,105610.0,105600.0,0.39193189]
[1750223277257,0.01920345,105610.0,105600.0,0.39193189]
[1750223277475,0.01920345,105610.0,105600.0,0.39293189]
[1750223277661,5.219919,105620.0,105610.0,0.28088132]
[1750223277897,5.219919,105620.0,105610.0,0.57200308]
[1750223279293,5.220919,105620.0,105610.0,0.57200308]
[1750223279727,5.23299287,105620.0,105610.0,0.57200308]
[1750223285434,5.23299287,105620.0,105610.0,0.54150308]
[1750223285868,5.23299287,105620.0,105610.0,0.50890308]
[1750223287693,5.23299287,105620.0,105610.0,0.57270308]
[1750223292139,5.23299287,105620.0,105610.0,0.54050308]
[1750223292357,5.20454287,105620.0,105610.0,0.54050308]
[1750223293401,5.20454287,105620.0,105610.0,0.57370308]
[1750223296209,5.20454287,105620.0,105610.0,0.86480308]
[1750223297304,5.20454287,105620.0,105610.0,0.86468308]
[1750223302923,0.01307387,105620.0,105610.0,1.12765759]
[1750223303148,0.001,105620.0,105610.0,0.91437613]
[1750223304025,0.01177721,105630.0,105620.0,0.23230154]
[1750223304243,0.3558932,105650.0,105640.0,0.23226032]
[1750223304460,5.2073622,105650.0,105640.0,0.52326208]
[1750223305340,5.2073622,105650.0,105640.0,0.52330944]
[1750223305571,5.25002669,105650.0,105640.0,0.52330944]
[1750223305786,5.2405622,105650.0,105640.0,0.32854944]
[1750223306003,5.28232678,105650.0,105640.0,0.52330944]
[1750223306459,5.2728622,105650.0,105640.0,0.52326944]
[1750223306675,5.28232678,105650.0,105640.0,0.52326944]
[1750223307100,5.28232669,105650.0,105640.0,0.52326944]
[1750223307308,4.92643349,105650.0,105640.0,0.52326944]
[1750223307521,4.916969,105650.0,105640.0,0.52326944]
[1750223307731,4.92643358,105650.0,105640.0,0.52326944]
[1750223308142,4.93589825,105650.0,105640.0,0.32854944]
[1750223308345,4.94802734,105650.0,105640.0,0.52326944]
[1750223309429,5.28802734,105650.0,105640.0,0.52326944]
[1750223309802,5.28802734,105650.0,105640.0,0.36862944]
[1750223310004,5.28802734,105650.0,105640.0,0.52326944]
[1750223310210,5.27856267,105650.0,105640.0,0.52326944]
[1750223310865,5.27856258,105650.0,105640.0,0.52326944]
[1750223311304,5.27692258,105650.0,105640.0,0.52326944]
[1750223311516,5.28638725,105650.0,105640.0,0.52326944]
[1750223311929,5.28629993,105650.0,105640.0,0.52326944]
[1750223314268,5.28629984,105650.0,105640.0,0.52326944]
[1750223315571,5.29576451,105650.0,105640.0,0.52326944]
[1750223319427,5.20287077,105650.0,105640.0,0.52326944]
[1750223319633,5.23126469,105650.0,105640.0,0.52326944]
[1750223320092,5.22179984,105650.0,105640.0,0.52326944]
[1750223320852,5.23126469,105650.0,105640.0,0.52326944]
[1750223321041,5.2312646,105650.0,105640.0,0.52326944]
[1750223321664,5.20287077,105650.0,105640.0,0.52326944]
[1750223321879,5.21233526,105650.0,105640.0,0.58606944]
[1750223322555,5.22179993,105650.0,105640.0,0.58606944]
[1750223322772,5.21233526,105650.0,105640.0,0.58606944]
[1750223323219,5.21233517,105650.0,105640.0,0.58606944]
[1750223323678,5.22179975,105650.0,105640.0,0.52322944]
[1750223323950,5.20287077,105650.0,105640.0,0.52322944]
[1750223325897,5.20287077,105650.0,105640.0,0.81432944]
[1750223326566,5.21233517,105650.0,105640.0,0.87862944]
[1750223326778,5.21233517,105650.0,105640.0,0.81432944]
[1750223326988,5.23126451,105650.0,105640.0,0.81432944]
[1750223327204,5.25409975,105650.0,105640.0,0.81432944]
[1750223327683,5.22179975,105650.0,105640.0,0.81432944]
[1750223329057,5.23126451,105650.0,105640.0,0.81432944]
[1750223331638,5.23126442,105650.0,105640.0,0.81432944]
[1750223334154,5.24072927,105650.0,105640.0,0.81432944]
[1750223334376,5.23126442,105650.0,105640.0,0.81432944]
[1750223335443,5.24072927,105650.0,105640.0,0.81432944]
[1750223336158,5.25019421,105650.0,105640.0,0.81432944]
[1750223336363,5.24072981,105650.0,105640.0,0.81432944]
[1750223336569,5.27252981,105650.0,105640.0,0.81432944]
[1750223337229,5.24072981,105650.0,105640.0,0.81432944]
[1750223337689,5.24072981,105650.0,105640.0,0.52322944]
[1750223339560,5.25019484,105650.0,105640.0,0.52322944]
[1750223339758,5.25019484,105650.0,105640.0,0.36862944]
[1750223339982,5.25019484,105650.0,105640.0,0.52322944]
[1750223340819,5.25019538,105650.0,105640.0,0.52322944]
[1750223347923,5.24073026,105650.0,105640.0,0.52322944]
[1750223348709,5.25019538,105650.0,105640.0,0.52322944]
[1750223348922,5.25019538,105650.0,105640.0,0.55482944]
[1750223348923,5.22179984,105650.0,105640.0,0.55482944]
[1750223349135,5.22179984,105650.0,105640.0,0.58662944]
[1750223349576,5.23126469,105650.0,105640.0,0.58662944]
[1750223349790,5.2312646,105650.0,105640.0,0.58662944]
[1750223351727,5.21233535,105650.0,105640.0,0.58662944]
[1750223351936,5.20287077,105650.0,105640.0,0.58662944]
[1750223352161,5.21233535,105650.0,105640.0,0.58662944]
[1750223352381,5.21233526,105650.0,105640.0,0.58662944]
[1750223352595,5.22179984,105650.0,105640.0,0.58662944]
[1750223353746,5.23126451,105650.0,105640.0,0.58662944]
[1750223354414,5.22179984,105650.0,105640.0,0.58662944]
[1750223354598,5.23126451,105650.0,105640.0,0.58662944]
[1750223355355,5.23126451,105650.0,105640.0,0.87772944]
[1750223356888,5.24072936,105650.0,105640.0,0.87772944]
[1750223358207,5.5012195,105650.0,105640.0,0.42742912]
[1750223358422,5.52395698,105650.0,105640.0,4.736e-05]
[1750223358640,5.52395698,105650.0,105640.0,0.19464736]
[1750223359283,5.55240298,105650.0,105640.0,0.19464736]
[1750223359536,5.55140298,105650.0,105640.0,0.19464736]
[1750223359749,5.55440298,105650.0,105640.0,0.19464736]
[1750223360039,5.55440298,105650.0,105640.0,4.736e-05]
[1750223360262,5.55540298,105650.0,105640.0,0.19464736]
[1750223360482,5.55540298,105650.0,105640.0,4.736e-05]
[1750223360699,4.87814139,105630.0,105620.0,0.18794845]
[1750223360920,4.87814139,105630.0,105620.0,0.47883767]
[1750223361135,4.88760821,105630.0,105620.0,0.48830548]
[1750223362234,4.87814139,105630.0,105620.0,0.48830548]
[1750223362455,4.88760821,105630.0,105620.0,0.4808383]
[1750223362673,4.89707512,105630.0,105620.0,0.49977293]
[1750223362891,5.41694906,105630.0,105620.0,0.26730331]
[1750223363118,5.4074826,105630.0,105620.0,0.47137103]
[1750223363372,5.4074826,105630.0,105620.0,0.47237103]
[1750223363821,5.4074826,105630.0,105620.0,0.48183857]
[1750223364267,5.4074826,105630.0,105620.0,0.77293857]
[1750223364512,5.39801587,105630.0,105620.0,0.77293857]
[1750223364976,5.39801587,105630.0,105620.0,0.61837857]
[1750223365188,5.39801587,105630.0,105620.0,0.77293857]
[1750223365830,5.39801587,105630.0,105620.0,0.48183857]
[1750223366044,5.38854905,105630.0,105620.0,0.47237103]
[1750223366450,5.42044905,105630.0,105620.0,0.34322814]
[1750223366678,5.45274905,105630.0,105620.0,0.50725586]
[1750223366874,5.44328214,105630.0,105620.0,0.30843007]
[1750223368107,5.44328214,105630.0,105620.0,0.04308746]
[1750223368336,5.44328214,105630.0,105620.0,0.19764746]
[1750223368754,5.47173414,105630.0,105620.0,0.19764746]